fUSD/lending_fUSD_20250101
["ID","MTS","AMOUNT","RATE_DAILY","PERIOD"]
[347364095,1735733450795,-941.42,0.00011232,2]
[347364096,1735733450805,-633.33,0.00011232,2]
[347364097,1735733450815,-11728.19,0.00011232,2]
[347364098,1735733450824,-1064.57,0.00011232,2]
[347364099,1735733450834,-500.0,0.00011232,2]
[347364100,1735733450844,-500.0,0.00011232,2]
[347364101,1735733450854,-902.33,0.00011232,2]
[347364102,1735733450864,-500.0,0.00011232,2]
[347364103,1735733450875,-582.88,0.00011232,2]
[347364104,1735733450885,-500.0,0.00011232,2]
[347364105,1735733450895,-1462.45,0.00011232,2]
[347364106,1735733450904,-608.26,0.00011232,2]
[347364107,1735733450914,-978.74,0.00011232,2]
[347364108,1735733450924,-616.34,0.00011232,2]
[347364109,1735733450935,-500.0,0.00011232,2]
[347364110,1735733450949,-500.0,0.00011232,2]
[347364111,1735733450958,-701.69,0.00011232,2]
[347364112,1735733450968,-555.74,0.00011232,2]
[347364113,1735733450978,-1049.54,0.00011232,2]
[347364114,1735733450988,-918.77,0.00011232,2]
[347364115,1735733450997,-500.0,0.00011232,2]
[347364116,1735733451007,-500.0,0.00011232,2]
[347364117,1735733451017,-32113.9,0.00011232,2]
[347364118,1735733451027,-500.0,0.00011232,2]
[347364119,1735733451037,-500.0,0.00011232,2]
[347364120,1735733451047,-500.0,0.00011232,2]
[347364121,1735733451056,-500.0,0.00011232,2]
[347364122,1735733451066,-1341.28,0.00011232,2]
[347364123,1735733451075,-500.0,0.00011232,2]
[347364124,1735733451085,-500.0,0.00011232,2]
[347364125,1735733451095,-546.06,0.00011232,2]
[347364126,1735733451105,-500.0,0.00011232,2]
[347364127,1735733451115,-954.32,0.00011232,2]
[347364128,1735733451125,-1635.27,0.00011232,2]
[347364129,1735733451134,-500.0,0.00011232,2]
[347364130,1735733451145,-761.51,0.00011232,2]
[347364131,1735733451156,-500.0,0.00011232,2]
[347364132,1735733451166,-2036.91,0.00011232,2]
[347364133,1735733451175,-1331.14,0.00011232,2]
[347364134,1735733451193,-536.85,0.00011232,2]
[347364135,1735733451204,-500.0,0.00011232,2]
[347364136,1735733451215,-500.0,0.00011232,2]
[347364137,1735733451226,-523.67,0.00011232,2]
[347364138,1735733451236,-2389.04,0.00011232,2]
[347364139,1735733451247,-889.88,0.00011232,2]
[347364140,1735733451257,-544.21,0.00011232,2]
[347364141,1735733451268,-500.0,0.00011232,2]
[347364142,1735733451278,-500.0,0.00011232,2]
[347364143,1735733451288,-2074.54,0.00011232,2]
[347364144,1735733451299,-500.78,0.00011232,2]
[347364145,1735733451309,-500.0,0.00011232,2]
[347364146,1735733451319,-500.0,0.00011232,2]
[347364147,1735733451329,-2476.64,0.00011232,2]
[347364148,1735733451340,-269.9690249,0.00011232,2]
[347364149,1735733451350,-674.11,0.00011232,2]
[347364150,1735733451360,-500.0,0.00011232,2]
[347364151,1735733451370,-500.0,0.00011232,2]
[347364152,1735733451380,-777.79,0.00011232,2]
[347364153,1735733451391,-500.0,0.00011232,2]
[347364154,1735733451404,-1252.3,0.00011232,2]
[347364155,1735733451415,-1072.28,0.00011232,2]
[347364156,1735733451426,-1327.65,0.00011232,2]
[347364157,1735733451436,-596.49,0.00011232,2]
[347364158,1735733451450,-500.0,0.00011232,2]
[347364159,1735733451459,-500.0,0.00011232,2]
[347364160,1735733451471,-575.78,0.00011232,2]
[347364161,1735733451481,-500.0,0.00011232,2]
[347364162,1735733451491,-500.0,0.00011232,2]
[347364163,1735733451502,-500.0,0.00011232,2]
[347364164,1735733451511,-542.78,0.00011232,2]
[347364165,1735733451522,-278.66,0.00011232,2]
[347364166,1735733451532,-2078.14,0.00011232,2]
[347364167,1735733451542,-636.23,0.00011232,2]
[347364168,1735733451553,-777.84,0.00011232,2]
[347364169,1735733451563,-500.0,0.00011232,2]
[347364170,1735733451574,-500.0,0.00011232,2]
[347364171,1735733451584,-544.35,0.00011232,2]
[347364172,1735733451597,-2196.06,0.00011232,2]
[347364173,1735733451607,-944.95,0.00011232,2]
[347364174,1735733451618,-2082.63,0.00011232,2]
[347364175,1735733451628,-513.92,0.00011232,2]
[347364176,1735733451640,-500.0,0.00011232,2]
[347364177,1735733451650,-589.8,0.00011232,2]
[347364178,1735733451660,-500.0,0.00011232,2]
[347364179,1735733451672,-479.72953856,0.00011232,2]
[347364180,1735733451683,-2254.14,0.00011232,2]
[347364181,1735733451693,-2306.3,0.00011232,2]
[347364182,1735733451703,-500.0,0.00011232,2]
[347364183,1735733451714,-689.49,0.00011232,2]
[347364184,1735733451724,-500.0,0.00011232,2]
[347364185,1735733451735,-751.39,0.00011232,2]
[347364186,1735733451746,-500.0,0.00011232,2]
[347364187,1735733451756,-500.0,0.00011232,2]
[347364188,1735733451766,-500.0,0.00011232,2]
[347364189,1735733451776,-500.0,0.00011232,2]
[347364190,1735733451787,-526.31,0.00011232,2]
[347364191,1735733451796,-1433.59,0.00011232,2]
[347364192,1735733451807,-4695.58,0.00011232,2]
[347364193,1735733451817,-1525.72,0.00011232,2]
[347364194,1735733451827,-500.0,0.00011232,2]
[347364195,1735733451837,-1895.59,0.00011232,2]
[347364196,1735733451846,-2016.72,0.00011232,2]
[347364197,1735733451856,-1080.22,0.00011232,2]
[347364198,1735733451866,-1044.59,0.00011232,2]
[347364199,1735733451876,-890.64,0.00011232,2]
[347364200,1735733451886,-2058.88,0.00011232,2]
[347364201,1735733451897,-961.56,0.00011232,2]
[347364202,1735733451907,-1459.58,0.00011232,2]
[347364203,1735733451917,-565.83,0.00011232,2]
[347364204,1735733451927,-500.0,0.00011232,2]
[347364205,1735733451938,-1629.95,0.00011232,2]
[347364206,1735733451948,-1195.99,0.00011232,2]
[347364207,1735733451957,-733.62,0.00011232,2]
[347364208,1735733451968,-1450.09,0.00011232,2]
[347364209,1735733451979,-500.0,0.00011232,2]
[347364210,1735733451989,-500.0,0.00011232,2]
[347364211,1735733451999,-500.0,0.00011232,2]
[347364212,1735733452008,-822.61,0.00011232,2]
[347364213,1735733452019,-2189.61,0.00011232,2]
[347364214,1735733452028,-1523.58,0.00011232,2]
[347364215,1735733452038,-1648.08,0.00011232,2]
[347364216,1735733452048,-1006.14,0.00011232,2]
[347364217,1735733452058,-500.0,0.00011232,2]
[347364218,1735733452068,-500.0,0.00011232,2]
[347364219,1735733452078,-3855.92,0.00011232,2]
[347364220,1735733452087,-500.0,0.00011232,2]
[347364221,1735733452098,-1320.11,0.00011232,2]
[347364222,1735733452108,-500.0,0.00011232,2]
[347364223,1735733452118,-500.0,0.00011232,2]
[347364224,1735733452128,-611.71,0.00011232,2]
[347364225,1735733452138,-719.81,0.00011232,2]
[347364226,1735733452148,-1883.33,0.00011232,2]
[347364227,1735733452158,-1045.82,0.00011232,2]
[347364228,1735733452169,-1883.33,0.00011232,2]
[347364229,1735733452178,-500.0,0.00011232,2]
[347364230,1735733452188,-186.66697161,0.00011232,2]
[347364231,1735733452198,-1351.29,0.00011232,2]
[347364232,1735733452207,-4932.43,0.00011232,2]
[347364233,1735733452217,-500.0,0.00011232,2]
[347364234,1735733452228,-500.0,0.00011232,2]
[347364235,1735733452237,-500.0,0.00011232,2]
[347364236,1735733452247,-2407.72,0.00011232,2]
[347364237,1735733452256,-500.0,0.00011232,2]
[347364238,1735733452268,-2719.93,0.00011232,2]
[347364239,1735733452279,-500.0,0.00011232,2]
[347364240,1735733452289,-1194.24,0.00011232,2]
[347364241,1735733452300,-2005.32,0.00011232,2]
[347364242,1735733452309,-500.0,0.00011232,2]
[347364243,1735733452319,-633.52,0.00011232,2]
[347364244,1735733452329,-500.0,0.00011232,2]
[347364245,1735733452338,-741.97,0.00011232,2]
[347364246,1735733452349,-1088.8,0.00011232,2]
[347364247,1735733452359,-500.0,0.00011232,2]
[347364248,1735733452370,-500.0,0.00011232,2]
[347364249,1735733452380,-1364.15,0.00011232,2]
[347364250,1735733452390,-500.0,0.00011232,2]
[347364251,1735733452400,-500.0,0.00011232,2]
[347364252,1735733452410,-1362.65,0.00011232,2]
[347364253,1735733452720,-1213.5,0.00011232,2]
[347364254,1735733452731,-500.0,0.00011232,2]
[347364255,1735733452741,-833.49,0.00011232,2]
[347364256,1735733452751,-648.91,0.00011232,2]
[347364257,1735733452761,-500.0,0.00011232,2]
[347364258,1735733452770,-867.78,0.00011232,2]
[347364259,1735733452779,-500.0,0.00011232,2]
[347364260,1735733452789,-500.0,0.00011232,2]
[347364261,1735733452798,-500.0,0.00011232,2]
[347364262,1735733452808,-500.0,0.00011232,2]
[347364263,1735733452818,-1317.22,0.00011232,2]
[347364264,1735733452827,-2148.3,0.00011232,2]
[347364265,1735733452836,-1196.02,0.00011232,2]
[347364266,1735733452846,-500.0,0.00011232,2]
[347364267,1735733452855,-500.0,0.00011232,2]
[347364268,1735733452864,-500.0,0.00011232,2]
[347364269,1735733452873,-1481.26,0.00011232,2]
[347364270,1735733452883,-897.54,0.00011232,2]
[347364271,1735733452892,-1838.94,0.00011232,2]
[347364272,1735733452902,-500.0,0.00011232,2]
[347364273,1735733452912,-330.19,0.00011232,2]
[347364274,1735733452921,-500.0,0.00011232,2]
[347364275,1735733452930,-1896.15,0.00011232,2]
[347364276,1735733452941,-505.01,0.00011232,2]
[347364277,1735733452950,-500.0,0.00011232,2]
[347364278,1735733452959,-500.0,0.00011232,2]
[347364279,1735733452968,-1337.84,0.00011232,2]
[347364280,1735733452978,-2622.08,0.00011232,2]
[347364281,1735733452987,-500.0,0.00011232,2]
[347364282,1735733452996,-1835.21,0.00011232,2]
[347364283,1735733453005,-500.0,0.00011232,2]
[347364284,1735733453015,-500.0,0.00011232,2]
[347364285,1735733453024,-2341.83,0.00011232,2]
[347364286,1735733453033,-500.0,0.00011232,2]
[347364287,1735733453043,-2652.66,0.00011232,2]
[347364288,1735733453052,-939.27,0.00011232,2]
[347364289,1735733453061,-618.22,0.00011232,2]
[347364290,1735733453070,-500.0,0.00011232,2]
[347364291,1735733453080,-500.0,0.00011232,2]
[347364292,1735733453089,-636.11,0.00011232,2]
[347364293,1735733453099,-842.33,0.00011232,2]
[347364294,1735733453108,-500.0,0.00011232,2]
[347364295,1735733453117,-500.0,0.00011232,2]
[347364296,1735733453126,-500.0,0.00011232,2]
[347364297,1735733453136,-748.07,0.00011232,2]
[347364298,1735733453145,-1836.37,0.00011232,2]
[347364299,1735733453154,-784.87,0.00011232,2]
[347364300,1735733453164,-500.0,0.00011232,2]
[347364301,1735733453173,-1958.93,0.00011232,2]
[347364302,1735733453182,-1208.62,0.00011232,2]
[347364303,1735733453193,-1811.03,0.00011232,2]
[347364304,1735733453203,-706.94,0.00011232,2]
[347364305,1735733453212,-500.0,0.00011232,2]
[347364306,1735733453222,-900.44,0.00011232,2]
[347364307,1735733453231,-500.0,0.00011232,2]
[347364308,1735733453240,-556.47,0.00011232,2]
[347364309,1735733453249,-520.55,0.00011232,2]
[347364310,1735733453259,-500.0,0.00011232,2]
[347364311,1735733453268,-2008.98,0.00011232,2]
[347364312,1735733453277,-500.0,0.00011232,2]
[347364313,1735733453286,-2134.59,0.00011232,2]
[347364314,1735733453296,-500.0,0.00011232,2]
[347364315,1735733453305,-596.74,0.00011232,2]
[347364316,1735733453314,-500.0,0.00011232,2]
[347364317,1735733453324,-500.0,0.00011232,2]
[347364318,1735733453334,-2705.33,0.00011232,2]
[347364319,1735733453343,-500.0,0.00011232,2]
[347364320,1735733453352,-628.28,0.00011232,2]
[347364321,1735733453362,-500.0,0.00011232,2]
[347364322,1735733453371,-802.48,0.00011232,2]
[347364323,1735733453381,-611.95,0.00011232,2]
[347364324,1735733453390,-2690.01,0.00011232,2]
[347364325,1735733453399,-718.62,0.00011232,2]
[347364326,1735733453408,-993.55,0.00011232,2]
[347364327,1735733453418,-2602.66,0.00011232,2]
[347364328,1735733453427,-500.0,0.00011232,2]
[347364329,1735733453436,-1206.53,0.00011232,2]
[347364330,1735733453446,-500.0,0.00011232,2]
[347364331,1735733453456,-680.96,0.00011232,2]
[347364332,1735733453465,-150.0,0.00011232,2]
[347364333,1735733453474,-285.35,0.00011232,2]
[347364334,1735733453484,-1218.77,0.00011232,2]
[347364335,1735733453493,-898.54,0.00011232,2]
[347364336,1735733453502,-706.4,0.00011232,2]
[347364337,1735733453512,-500.0,0.00011232,2]
[347364338,1735733453522,-500.0,0.00011232,2]
[347364339,1735733453532,-500.0,0.00011232,2]
[347364340,1735733453541,-500.0,0.00011232,2]
[347364341,1735733453550,-728.35,0.00011232,2]
[347364342,1735733453559,-1082.22,0.00011232,2]
[347364343,1735733453568,-666.46,0.00011232,2]
[347364344,1735733453578,-500.0,0.00011232,2]
[347364345,1735733453588,-1951.47,0.00011232,2]
[347364346,1735733453599,-500.0,0.00011232,2]
[347364347,1735733453609,-500.0,0.00011232,2]
[347364348,1735733453619,-642.57,0.00011232,2]
[347364349,1735733453629,-1755.35,0.00011232,2]
[347364350,1735733453639,-1374.18,0.00011232,2]
[347364351,1735733453649,-500.0,0.00011232,2]
[347364352,1735733453658,-765.07,0.00011232,2]
[347364353,1735733453668,-1025.75,0.00011232,2]
[347364354,1735733453678,-906.16,0.00011232,2]
[347364355,1735733453687,-1350.84,0.00011232,2]
[347364356,1735733453698,-2008.21,0.00011232,2]
[347364357,1735733453707,-500.0,0.00011232,2]
[347364358,1735733453717,-500.0,0.00011232,2]
[347364359,1735733453726,-500.0,0.00011232,2]
[347364360,1735733453736,-18148.51,0.00011232,2]
[347364361,1735733453745,-597.29,0.00011232,2]
[347364362,1735733453755,-1169.24,0.00011232,2]
[347364363,1735733453764,-653.6,0.00011232,2]
[347364364,1735733453773,-829.56,0.00011232,2]
[347364365,1735733453783,-604.89,0.00011232,2]
[347364366,1735733453792,-2198.24,0.00011232,2]
[347364367,1735733453801,-500.0,0.00011232,2]
[347364368,1735733453812,-1369.44,0.00011232,2]
[347364369,1735733453822,-1073.04,0.00011232,2]
[347364370,1735733453832,-500.0,0.00011232,2]
[347364371,1735733453841,-517.08,0.00011232,2]
[347364372,1735733453851,-175.98,0.00011232,2]
[347364373,1735733453860,-735.88,0.00011232,2]
[347364374,1735733453869,-1446.93,0.00011232,2]
[347364375,1735733453879,-500.0,0.00011232,2]
[347364376,1735733453888,-512.03,0.00011232,2]
[347364377,1735733453898,-500.0,0.00011232,2]
[347364378,1735733453908,-542.12,0.00011232,2]
[347364379,1735733453918,-500.0,0.00011232,2]
[347364380,1735733453927,-500.0,0.00011232,2]
[347364381,1735733453937,-512.44,0.00011232,2]
[347364382,1735733453948,-500.0,0.00011232,2]
[347364383,1735733453958,-1386.29,0.00011232,2]
[347364384,1735733453968,-1630.03,0.00011232,2]
[347364385,1735733453978,-783.86,0.00011232,2]
[347364386,1735733453987,-500.0,0.00011232,2]
[347364387,1735733453997,-638.44,0.00011232,2]
[347364388,1735733454006,-1899.8,0.00011232,2]
[347364389,1735733454016,-3349.41,0.00011232,2]
[347364390,1735733454026,-500.0,0.00011232,2]
[347364391,1735733454036,-1365.65,0.00011232,2]
[347364392,1735733454046,-500.0,0.00011232,2]
[347364393,1735733454056,-1126.47,0.00011232,2]
[347364394,1735733454065,-2311.23,0.00011232,2]
[347364395,1735733454075,-1261.12,0.00011232,2]
[347364396,1735733454085,-500.0,0.00011232,2]
[347364397,1735733454095,-1309.41,0.00011232,2]
[347364398,1735733454104,-2460.68,0.00011232,2]
[347364399,1735733454114,-500.0,0.00011232,2]
[347364400,1735733454123,-500.0,0.00011232,2]
[347364401,1735733454133,-1341.14,0.00011232,2]
[347364402,1735733454143,-370.04,0.00011232,2]
[347364403,1735733454152,-896.68,0.00011232,2]
[347364404,1735733454162,-500.0,0.00011232,2]
[347364405,1735733454171,-500.0,0.00011232,2]
[347364406,1735733454180,-500.0,0.00011232,2]
[347364407,1735733454190,-1542.87,0.00011232,2]
[347364408,1735733454199,-618.94,0.00011232,2]
[347364409,1735733454209,-500.0,0.00011232,2]
[347364410,1735733454218,-919.72,0.00011232,2]
[347364411,1735733454228,-1486.98,0.00011232,2]
[347364412,1735733454238,-2379.66,0.00011232,2]
[347364413,1735733454248,-1033.25,0.00011232,2]
[347364414,1735733454258,-1906.66,0.00011232,2]
[347364415,1735733454269,-500.0,0.00011232,2]
[347364416,1735733454279,-500.0,0.00011232,2]
[347364417,1735733454288,-1088.97,0.00011232,2]
[347364418,1735733454298,-880.65,0.00011232,2]
[347364419,1735733454308,-1940.08,0.00011232,2]
[347364420,1735733454317,-500.0,0.00011232,2]
[347364421,1735733454327,-500.0,0.00011232,2]
[347364422,1735733454336,-519.23,0.00011232,2]
[347364423,1735733454347,-500.0,0.00011232,2]
[347364424,1735733454356,-500.0,0.00011232,2]
[347364425,1735733454365,-3091.12,0.00011232,2]
[347364426,1735733454381,-500.0,0.00011232,2]
[347364427,1735733454390,-749.32,0.00011232,2]
[347364428,1735733454399,-1279.57,0.00011232,2]
[347364429,1735733454408,-500.0,0.00011232,2]
[347364430,1735733454418,-500.0,0.00011232,2]
[347364431,1735733454427,-2346.04,0.00011232,2]
[347364432,1735733454436,-511.84,0.00011232,2]
[347364433,1735733454447,-2347.87,0.00011232,2]
[347364434,1735733454456,-500.0,0.00011232,2]
[347364435,1735733454466,-956.02,0.00011232,2]
[347364436,1735733454477,-727.4,0.00011232,2]
[347364437,1735733454486,-1463.68,0.00011232,2]
[347364438,1735733454496,-630.16,0.00011232,2]
[347364439,1735733454505,-785.45,0.00011232,2]
[347364440,1735733454514,-2389.66,0.00011232,2]
[347364441,1735733454524,-1392.87,0.00011232,2]
[347364442,1735733454533,-500.0,0.00011232,2]
[347364443,1735733454543,-500.0,0.00011232,2]
[347364444,1735733454552,-500.0,0.00011232,2]
[347364445,1735733454562,-500.0,0.00011232,2]
[347364446,1735733454571,-939.82,0.00011232,2]
[347364447,1735733454581,-696.2,0.00011232,2]
[347364448,1735733454594,-891.1,0.00011232,2]
[347364449,1735733454603,-5566.67,0.00011232,2]
[347364450,1735733454613,-500.0,0.00011232,2]
[347364451,1735733454622,-500.0,0.00011232,2]
[347364452,1735733454634,-500.0,0.00011232,2]
[347364453,1735733454644,-1650.57,0.00011232,2]
[347364454,1735733454654,-500.71,0.00011232,2]
[347364455,1735733454664,-2362.5,0.00011232,2]
[347364456,1735733454675,-804.33,0.00011232,2]
[347364457,1735733454684,-1578.08,0.00011232,2]
[347364458,1735733454694,-1763.33,0.00011232,2]
[347364459,1735733454703,-3718.75,0.00011232,2]
[347364460,1735733454712,-500.0,0.00011232,2]
[347364461,1735733454722,-500.0,0.00011232,2]
[347364462,1735733454731,-547.56,0.00011232,2]
[347364463,1735733454740,-1263.22,0.00011232,2]
[347364464,1735733454749,-500.0,0.00011232,2]
[347364465,1735733454759,-2026.17,0.00011232,2]
[347364466,1735733454768,-500.0,0.00011232,2]
[347364467,1735733454778,-1090.99,0.00011232,2]
[347364468,1735733454787,-1775.1,0.00011232,2]
[347364469,1735733454797,-923.55,0.00011232,2]
[347364470,1735733454806,-4507.78,0.00011232,2]
[347364471,1735733454815,-2513.26,0.00011232,2]
[347364472,1735733454825,-2687.06,0.00011232,2]
[347364473,1735733454834,-500.0,0.00011232,2]
[347364474,1735733454843,-1787.15,0.00011232,2]
[347364475,1735733454852,-500.0,0.00011232,2]
[347364476,1735733454861,-500.0,0.00011232,2]
[347364477,1735733454871,-500.0,0.00011232,2]
[347364478,1735733454880,-500.0,0.00011232,2]
[347364479,1735733454889,-500.0,0.00011232,2]
[347364480,1735733454899,-577.32,0.00011232,2]
[347364481,1735733454908,-656.11,0.00011232,2]
[347364482,1735733454918,-1551.4,0.00011232,2]
[347364483,1735733454927,-4764.59,0.00011232,2]
[347364484,1735733454937,-500.0,0.00011232,2]
[347364485,1735733454946,-815.25,0.00011232,2]
[347364486,1735733454956,-500.0,0.00011232,2]
[347364487,1735733454966,-1317.93,0.00011232,2]
[347364488,1735733454977,-799.96,0.00011232,2]
[347364489,1735733455065,-721.79,0.00011232,2]
[347364490,1735733455075,-9083.21,0.00011232,2]
[347364491,1735733455084,-778.83,0.00011232,2]
[347364492,1735733455093,-2438.46,0.00011232,2]
[347364493,1735733455102,-2244.83,0.00011232,2]
[347364494,1735733455111,-3009.29,0.00011232,2]
[347364495,1735733455120,-2287.74,0.00011232,2]
[347364496,1735733455129,-1117.47,0.00011232,2]
[347364497,1735733455138,-1106.11,0.00011232,2]
[347364498,1735733455147,-984.69,0.00011232,2]
[347364499,1735733455157,-2890.55,0.00011232,2]
[347364500,1735733455166,-694.84,0.00011232,2]
[347364501,1735733455175,-765.08,0.00011232,2]
[347364502,1735733455184,-1613.98,0.00011232,2]
[347364503,1735733455193,-847.06,0.00011232,2]
[347364504,1735733455202,-500.0,0.00011232,2]
[347364505,1735733455211,-500.0,0.00011232,2]
[347364506,1735733455220,-500.0,0.00011232,2]
[347364507,1735733455229,-1151.11,0.00011232,2]
[347364508,1735733455239,-1428.65,0.00011232,2]
[347364509,1735733455248,-1744.85,0.00011232,2]
[347364510,1735733455257,-3166.12,0.00011232,2]
[347364511,1735733455266,-1506.43,0.00011232,2]
[347364512,1735733455275,-531.79,0.00011232,2]
[347364513,1735733455284,-636.51,0.00011232,2]
[347364514,1735733455293,-601.88,0.00011232,2]
[347364515,1735733455302,-2662.2,0.00011232,2]
[347364516,1735733455311,-2562.66,0.00011232,2]
[347364517,1735733455320,-500.0,0.00011232,2]
[347364518,1735733455329,-2021.21,0.00011232,2]
[347364519,1735733455339,-2095.27,0.00011232,2]
[347364520,1735733455348,-5291.14,0.00011232,2]
[347364521,1735733455357,-555.99,0.00011232,2]
[347364522,1735733455367,-500.0,0.00011232,2]
[347364523,1735733455376,-797.05,0.00011232,2]
[347364524,1735733455386,-1882.57,0.00011232,2]
[347364525,1735733455395,-518.78,0.00011232,2]
[347364526,1735733455404,-918.24,0.00011232,2]
[347364527,1735733455413,-4597.68,0.00011232,2]
[347364528,1735733455422,-621.89,0.00011232,2]
[347364529,1735733455432,-500.0,0.00011232,2]
[347364530,1735733455441,-7440.87,0.00011232,2]
[347364531,1735733455450,-500.0,0.00011232,2]
[347364532,1735733455459,-649.0,0.00011232,2]
[347364533,1735733455468,-500.0,0.00011232,2]
[347364534,1735733455477,-990.9,0.00011232,2]
[347364535,1735733455487,-600.18,0.00011232,2]
[347364536,1735733455496,-2352.41,0.00011232,2]
[347364537,1735733455505,-500.0,0.00011232,2]
[347364538,1735733455515,-519.29,0.00011232,2]
[347364539,1735733455524,-500.0,0.00011232,2]
[347364540,1735733455533,-1015.68,0.00011232,2]
[347364541,1735733455542,-4305.34,0.00011232,2]
[347364542,1735733455551,-1765.56811,0.00011232,2]
[347364543,1735733455561,-500.0,0.00011232,2]
[347364544,1735733455571,-500.0,0.00011232,2]
[347364545,1735733455580,-500.0,0.00011232,2]
[347364546,1735733455592,-551.87,0.00011232,2]
[347364547,1735733455601,-500.0,0.00011232,2]
[347364548,1735733455610,-2170.03,0.00011232,2]
[347364549,1735733455619,-4463.56,0.00011232,2]
[347364550,1735733455629,-1145.87,0.00011232,2]
[347364551,1735733455639,-1497.44,0.00011232,2]
[347364552,1735733455649,-720.46,0.00011232,2]
[347364553,1735733455658,-500.0,0.00011232,2]
[347364554,1735733455668,-1868.16,0.00011232,2]
[347364555,1735733455678,-1510.56,0.00011232,2]
[347364556,1735733455687,-1580.11,0.00011232,2]
[347364557,1735733455696,-500.0,0.00011232,2]
[347364558,1735733455705,-1564.63,0.00011232,2]
[347364559,1735733455714,-500.0,0.00011232,2]
[347364560,1735733455723,-1707.49,0.00011232,2]
[347364561,1735733455732,-4194.11,0.00011232,2]
[347364562,1735733455741,-500.0,0.00011232,2]
[347364563,1735733455750,-527.04,0.00011232,2]
[347364564,1735733455760,-1167.56,0.00011232,2]
[347364565,1735733455770,-1468.23,0.00011232,2]
[347364566,1735733455779,-500.0,0.00011232,2]
[347364567,1735733455788,-500.0,0.00011232,2]
[347364568,1735733455797,-525.74,0.00011232,2]
[347364569,1735733455807,-1787.52,0.00011232,2]
[347364570,1735733455816,-668.96,0.00011232,2]
[347364571,1735733455825,-500.0,0.00011232,2]
[347364572,1735733455833,-500.0,0.00011232,2]
[347364573,1735733455843,-4106.52,0.00011232,2]
[347364574,1735733455852,-523.56,0.00011232,2]
[347364575,1735733455861,-1814.04,0.00011232,2]
[347364576,1735733455870,-500.0,0.00011232,2]
[347364577,1735733455879,-1751.78,0.00011232,2]
[347364578,1735733455888,-2220.89,0.00011232,2]
[347364579,1735733455898,-500.0,0.00011232,2]
[347364580,1735733455907,-500.0,0.00011232,2]
[347364581,1735733455917,-500.0,0.00011232,2]
[347364582,1735733455927,-651.85,0.00011232,2]
[347364583,1735733455937,-1964.15,0.00011232,2]
[347364584,1735733455946,-990.07,0.00011232,2]
[347364585,1735733455955,-657.09,0.00011232,2]
[347364586,1735733455965,-571.14,0.00011232,2]
[347364587,1735733455974,-997.31,0.00011232,2]
[347364588,1735733455983,-2384.7,0.00011232,2]
[347364589,1735733455992,-1933.18,0.00011232,2]
[347364590,1735733456001,-2491.122501,0.00011232,2]
[347364591,1735733456011,-5000.69,0.00011232,2]
[347364592,1735733456020,-500.0,0.00011232,2]
[347364593,1735733456029,-500.0,0.00011232,2]
[347364594,1735733456038,-500.0,0.00011232,2]